bitfinex-derivatives/quotes_ETHF0:USTF0_20241104
["timestamp","ask_amount","ask_price","bid_price","bid_amount"]
[1730737727556,0.41131,2432.2,2432.1,0.4113]
[1730737727864,0.6024,2432.3,2432.2,0.41129]
[1730737727865,0.41128,2432.3,2432.2,0.41129]
[1730737729354,0.6463,2432.4,2431.9,3.20257682]
[1730737729557,0.41131,2432.2,2432.1,0.4113]
[1730737731451,0.41128,2432.3,2432.2,0.41127]
[1730737731955,1.05757,2432.4,2432.0,1.02831]
[1730737732162,1.05757,2432.4,2432.3,0.41127]
[1730737732562,41.21124,2432.5,2432.4,0.41126]
[1730737732855,3.7942,2432.8,2432.2,1.218]
[1730737733055,0.41127,2432.4,2432.3,0.41126]
[1730737733963,0.61657373,2432.3,2432.2,1.218]
[1730737734161,0.61657373,2432.3,2432.2,4.4258]
[1730737734360,0.61657373,2432.3,2432.2,4.83709]
[1730737734763,0.61657373,2432.3,2432.2,8.94829]
[1730737735056,40.8,2432.7,2432.6,0.41122]
[1730737735854,1.04187,2432.9,2432.6,3.2078]
[1730737736160,0.41119,2432.9,2432.8,0.41117]
[1730737736357,41.21119,2432.9,2432.8,0.41117]
[1730737737663,0.4112,2432.8,2432.7,0.4112]
[1730737737865,0.4112,2432.7,2432.6,1.05842]
[1730737738363,0.4112,2432.7,2432.6,0.41122]
[1730737738564,0.41125,2432.5,2432.4,0.41124]
[1730737739059,41.21125,2432.5,2432.4,0.41124]
[1730737739267,40.8,2432.5,2432.4,0.41124]
[1730737739762,41.21124,2432.5,2432.4,0.41124]
[1730737740769,0.41126,2432.4,2432.3,4.23726]
[1730737741560,0.41126,2432.4,2432.3,4.78867635]
[1730737742563,41.21125,2432.5,2432.4,0.41126]
[1730737744472,40.8,2432.5,2432.4,0.41126]
[1730737744674,41.21124,2432.5,2432.4,0.41126]
[1730737744863,41.21124,2432.5,2432.4,0.96295314]
[1730737745065,41.21124,2432.5,2432.4,0.41126]
[1730737745265,41.21124,2432.5,2432.4,0.96296835]
[1730737746558,40.8,2432.5,2432.4,5.07416835]
[1730737746766,0.41121,2432.7,2432.4,6.02458579]
[1730737746966,0.41119,2432.9,2432.8,0.41117]
[1730737747966,1.02159,2432.9,2432.8,0.41117]
[1730737748368,0.4112,2432.8,2432.7,0.41119]
[1730737750374,0.6104,2432.9,2432.4,5.84088979]
[1730737750572,0.4112,2432.8,2432.7,0.41119]
[1730737750867,0.6104,2432.9,2432.8,0.41119]
[1730737751565,41.21116,2433.0,2432.8,7.91717682]
[1730737751566,40.8,2433.0,2432.8,7.91717682]
[1730737751760,40.8,2433.0,2432.9,4.52157]
[1730737751961,3.2078,2433.1,2433.0,0.41115]
[1730737752267,3.71488,2433.5,2433.1,1.02785]
[1730737752472,41.2111,2433.4,2433.3,0.4111]
[1730737753472,40.8,2433.4,2433.3,0.4111]
[1730737753672,41.21109,2433.4,2433.3,0.4111]
[1730737753972,40.8,2433.4,2433.3,0.4111]
[1730737754265,0.41108,2433.5,2433.4,0.41109]
[1730737754769,41.21108,2433.5,2433.4,0.41109]
[1730737755476,0.41109,2433.4,2433.3,0.41109]
[1730737755674,40.8,2433.5,2433.2,0.5933]
[1730737755967,40.8,2433.5,2433.4,3.20257682]
[1730737756170,40.8,2433.5,2433.4,3.61366682]
[1730737756469,40.8,2433.5,2433.3,3.2078]
[1730737756671,0.6414,2433.4,2433.3,3.61889]
[1730737757571,0.6414,2433.7,2433.6,0.41105]
[1730737758069,41.4414,2433.7,2433.6,0.41105]
[1730737758275,41.85244,2433.7,2433.6,0.41105]
[1730737758465,41.85244,2433.7,2433.3,7.03157682]
[1730737758466,41.4414,2433.7,2433.3,7.03157682]
[1730737758772,41.4414,2433.7,2433.3,4.475]
[1730737758971,0.41109,2433.4,2433.3,4.88609]
[1730737759173,41.4414,2433.7,2433.3,4.475]
[1730737759371,0.41109,2433.5,2433.4,0.41108]
[1730737760378,41.4414,2433.7,2433.4,0.41108]
[1730737760682,0.41107,2433.6,2433.5,0.41106]
[1730737761175,0.41107,2433.6,2433.3,4.475]
[1730737761176,41.4414,2433.7,2433.3,4.475]
[1730737761373,41.4414,2433.7,2433.3,3.2078]
[1730737761573,0.41109,2433.4,2433.3,3.6189]
[1730737761773,0.41109,2433.4,2433.3,3.2078]
[1730737762679,0.41109,2433.4,2432.7,0.096]
[1730737762680,7.3174,2433.4,2432.7,0.096]
[1730737762976,42.0495,2433.7,2432.7,4.20036682]
[1730737762977,0.41119,2432.8,2432.7,4.20036682]
[1730737763183,0.41119,2432.8,2432.7,3.78917682]
[1730737763476,0.41119,2432.8,2432.7,3.61377682]
[1730737764185,41.21119,2432.8,2432.7,3.61377682]
[1730737766175,40.8,2432.8,2432.7,3.61377682]
[1730737767376,40.8,2432.8,2432.7,6.82157682]
[1730737767578,40.8,2432.8,2432.7,7.72417682]
[1730737767883,0.6286,2433.2,2433.1,0.41114]
[1730737768281,41.4286,2433.2,2433.1,0.41114]
[1730737768685,41.83972,2433.2,2433.1,0.41114]
[1730737768880,4.23542,2433.7,2433.0,8.26477682]
[1730737769181,0.4111,2433.4,2433.3,0.4111]
[1730737769378,41.2111,2433.4,2433.3,0.4111]
[1730737772274,40.8,2433.4,2433.3,0.4111]
[1730737773292,40.8,2433.4,2433.3,4.5207]
[1730737773596,0.615,2433.8,2433.7,0.41104]
[1730737773879,1.02602,2433.8,2433.7,0.41104]
[1730737774083,41.415,2433.8,2433.7,0.41104]
[1730737775182,41.82602,2433.8,2433.7,0.41104]
[1730737775384,41.415,2433.8,2433.7,0.41104]
[1730737775581,40.8,2433.8,2433.7,4.51984]
[1730737775785,0.41096,2434.2,2434.1,0.41096]
[1730737775985,0.41096,2434.2,2433.8,1.02754]
[1730737775986,3.2078,2434.3,2434.2,0.41095]
[1730737776582,3.61873,2434.3,2434.2,0.41095]
[1730737776789,3.2078,2434.3,2434.2,0.41095]
[1730737776981,1.62373,2434.4,2434.3,0.41093]
[1730737777181,1.62373,2434.4,2434.2,0.41094]
[1730737777384,1.62373,2434.4,2434.3,0.41093]
[1730737777789,1.62373,2434.4,2434.2,0.41094]
[1730737778488,1.2128,2434.4,2434.0,1.2179]
[1730737778786,1.62372,2434.4,2434.2,0.41094]
[1730737778989,1.62372,2434.4,2434.0,1.2179]
[1730737779382,1.62372,2434.4,2434.3,0.41093]
[1730737779986,0.41095,2434.3,2434.1,0.41096]
[1730737780189,1.2128,2434.4,2434.1,0.41096]
[1730737780190,0.41095,2434.2,2434.1,0.41097]
[1730737780394,1.2128,2434.4,2434.0,0.6258]
[1730737780590,0.41094,2434.3,2434.2,0.41095]
[1730737781089,1.2128,2434.4,2434.0,0.6258]
[1730737781283,1.62372,2434.4,2434.3,0.41093]
[1730737781986,1.2128,2434.4,2434.3,0.41093]
[1730737782382,44.41871,2434.5,2434.4,0.41092]
[1730737782383,44.0078,2434.5,2434.4,0.41092]
[1730737782688,0.41087,2434.7,2434.6,0.41087]
[1730737782991,40.8,2434.7,2434.6,0.41087]
[1730737783183,41.21087,2434.7,2434.6,0.41087]
[1730737784785,0.41089,2434.6,2434.5,0.41089]
[1730737785188,4.1072,2434.6,2434.2,1.2337]
[1730737785385,0.41093,2434.3,2434.2,1.02665]
[1730737785694,0.41112,2433.2,2433.0,1.60715553]
[1730737785989,0.4112,2432.7,2432.6,0.6133]
[1730737786187,0.41124,2432.5,2432.2,0.6133]
[1730737786393,0.41126,2432.4,2432.2,1.02458]
[1730737786783,40.8,2432.7,2432.3,0.41127]
[1730737786992,0.41122,2432.6,2432.3,0.41127]
[1730737787181,0.41125,2432.5,2432.4,0.41126]
[1730737787488,40.8,2432.7,2432.2,0.6133]
[1730737787690,3.2078,2432.5,2432.2,0.6133]
[1730737787895,3.2078,2432.5,2431.8,1.006]
[1730737788092,3.2078,2432.2,2431.8,1.006]
[1730737788290,3.2078,2432.2,2432.1,0.41131]
[1730737788492,0.41128,2432.3,2432.1,0.41131]
[1730737790382,0.41129,2432.2,2432.0,0.41131]
[1730737790593,3.2078,2432.5,2432.1,0.4113]
[1730737790797,0.41128,2432.3,2432.1,0.4113]
[1730737791390,3.2078,2432.5,2431.8,0.598]
[1730737791799,0.41131,2432.1,2431.9,0.41133]
[1730737791998,0.41133,2432.0,2431.8,0.41135]
[1730737792188,3.2078,2432.2,2431.6,3.2078]
[1730737792392,0.41135,2431.9,2431.7,0.41137]
[1730737793098,0.41133,2432.0,2431.8,0.41135]
[1730737793998,0.41133,2432.0,2431.8,0.41136]
[1730737794498,0.41133,2432.0,2431.8,0.41135]
[1730737795002,3.2078,2432.2,2431.6,3.2078]
[1730737795303,0.41131,2432.1,2431.9,0.41133]
[1730737795996,0.41131,2432.1,2431.6,3.2078]
[1730737796197,0.41131,2432.1,2431.9,0.41133]
[1730737797206,3.6191,2432.2,2432.0,0.41132]
[1730737797400,3.2078,2432.2,2431.6,3.2078]
[1730737797600,0.41131,2432.1,2432.0,0.41132]
[1730737798106,3.6191,2432.2,2432.0,0.41132]
[1730737798597,3.6191,2432.2,2431.6,4.23626]
[1730737798802,3.2078,2432.2,2432.1,0.41131]
[1730737799006,3.2078,2432.2,2431.7,1.02844]
[1730737799203,3.2078,2432.2,2431.6,3.2078]
[1730737799501,0.41138,2431.7,2431.3,3.8425]
[1730737799701,0.4114,2431.6,2431.3,3.8425]
[1730737800004,0.41138,2431.7,2431.6,0.41138]
[1730737800204,3.2078,2431.8,2431.3,3.8425]
[1730737800397,3.2078,2431.5,2431.3,0.6347]
[1730737800705,0.41142,2431.4,2431.3,1.04614]
[1730737800905,3.61922,2431.5,2431.3,1.04614]
[1730737801101,3.2078,2431.5,2431.3,0.41144]
[1730737801403,0.41145,2431.3,2431.2,0.41146]
[1730737801605,3.2078,2431.5,2431.1,0.41146]
[1730737801900,40.8,2431.4,2431.2,0.41145]
[1730737802105,0.41144,2431.3,2431.1,0.41146]
[1730737802304,0.41144,2431.3,2431.0,0.4627]
[1730737802809,0.41148,2431.1,2431.0,0.87419]
[1730737803205,3.61927,2431.2,2431.0,0.4627]
[1730737803409,3.61927,2431.2,2431.1,0.41148]
[1730737803903,3.2078,2431.2,2431.1,0.41148]
[1730737805609,3.61926,2431.2,2431.1,0.41148]
[1730737806002,3.2078,2431.2,2431.1,0.41148]
[1730737806405,0.4463,2431.5,2431.1,0.41148]
[1730737806406,3.61921,2431.5,2431.4,0.41142]
[1730737806603,3.2078,2431.5,2431.4,0.41142]
[1730737807309,3.61921,2431.5,2431.4,0.41142]
[1730737807511,3.2078,2431.5,2431.4,0.41142]
[1730737808011,40.8,2431.8,2431.4,7.3206]
[1730737808316,0.41137,2431.8,2431.4,1.02854]
[1730737808506,5.44235353,2432.1,2431.6,0.41138]
[1730737808710,5.44235353,2432.1,2431.6,0.41139]
[1730737808711,0.41138,2431.7,2431.6,0.41139]
[1730737809217,0.41136,2431.8,2431.7,0.41137]
[1730737809402,3.2078,2431.9,2431.2,4.23644]
[1730737809602,3.2078,2431.9,2431.6,0.41139]
[1730737809603,0.41138,2431.7,2431.6,0.41139]
[1730737809801,0.41137,2431.8,2431.6,0.41138]
[1730737810006,0.41139,2431.7,2431.3,0.4277]
[1730737810307,0.4114,2431.6,2431.5,0.4114]
[1730737810515,0.4114,2431.6,2431.5,0.41141]
[1730737810806,0.41139,2431.6,2431.5,0.4114]
[1730737812114,0.41139,2431.7,2431.5,0.4114]
[1730737812412,3.2078,2431.9,2431.5,0.4114]
[1730737812413,0.41139,2431.6,2431.5,0.4114]
[1730737812810,0.41141,2431.5,2431.4,0.41141]
[1730737813212,0.41145,2431.3,2431.1,0.41146]
[1730737813517,0.41145,2431.3,2430.9,0.4372]
[1730737813812,0.41145,2431.3,2431.1,0.41146]
[1730737814314,0.41145,2431.3,2430.9,0.4372]
[1730737814315,0.41145,2431.3,2431.2,0.41146]
[1730737814508,3.2078,2431.5,2430.9,0.4372]
[1730737814710,0.41144,2431.3,2431.2,0.41145]
[1730737814913,0.41145,2431.3,2431.1,0.41146]
[1730737815111,3.2078,2431.5,2430.9,0.4372]
[1730737815315,0.41149,2431.1,2431.0,0.41149]
[1730737815511,0.41148,2431.1,2431.0,0.41149]
[1730737816014,0.41149,2431.0,2430.9,0.8487]
[1730737816207,2.05687648,2431.3,2430.7,4.05393]
[1730737816208,0.41152,2430.9,2430.7,4.05393]
[1730737816407,0.41152,2430.9,2430.8,0.41152]
[1730737816617,0.4115,2431.0,2430.9,0.4115]
[1730737816819,0.41152,2430.9,2430.8,0.41152]
[1730737817517,0.4115,2431.0,2430.9,0.41151]
[1730737817924,0.4115,2431.0,2430.9,0.4115]
[1730737818113,0.4115,2431.0,2430.7,3.6424]
[1730737818114,0.41148,2431.1,2431.0,0.41149]
[1730737818318,3.2078,2431.2,2430.7,3.6424]
[1730737818615,1.43971648,2431.3,2430.8,1.44035]
[1730737818914,0.41146,2431.2,2431.1,0.41147]
[1730737819321,1.02825648,2431.3,2430.8,0.4304]
[1730737819517,1.02825648,2431.3,2430.8,1.45922]
[1730737819716,1.02825648,2431.3,2431.2,0.41146]
[1730737819911,1.43969648,2431.3,2431.2,0.41146]
[1730737820316,1.02825648,2431.3,2431.2,0.41146]
[1730737820815,1.43969648,2431.3,2431.2,0.41146]
[1730737821019,0.41148,2431.1,2431.0,4.04348]
[1730737821214,1.02825648,2431.3,2431.0,3.632]
[1730737821415,0.41147,2431.2,2431.1,0.41146]
[1730737821624,1.02825648,2431.3,2431.0,4.04348]
[1730737821625,0.41148,2431.1,2431.0,4.04348]
[1730737821923,0.41148,2431.1,2431.0,3.632]
[1730737822115,0.41148,2431.1,2431.0,4.04349]
[1730737822316,0.41148,2431.1,2431.0,3.2078]
[1730737824524,0.41153,2430.8,2430.7,0.4342]
[1730737825016,0.41153,2430.8,2430.7,0.84574]
[1730737825521,0.41152,2430.9,2430.8,0.41152]
[1730737825717,0.41151,2431.0,2430.9,0.4115]
[1730737825918,3.2078,2431.1,2430.7,0.4342]
[1730737826126,3.2078,2431.1,2430.7,0.84573]
[1730737826127,0.41153,2430.8,2430.7,0.84573]
[1730737828119,0.41152,2430.9,2430.8,0.41152]
[1730737829824,3.00185385,2431.1,2430.7,0.4342]
[1730737830014,0.4115,2431.0,2430.9,0.4115]
[1730737830727,0.4115,2431.0,2430.9,0.96047561]
[1730737830916,3.00185385,2431.1,2430.9,0.54897471]
[1730737831117,0.41151,2430.9,2430.8,1.47825058]
[1730737831318,3.62168011,2430.9,2430.8,2.78643459]
[1730737831523,3.62168011,2430.9,2430.8,1.62450637]
[1730737831723,7.73528011,2430.9,2430.8,1.62450637]
[1730737831923,7.73528011,2430.9,2430.8,0.55012285]
[1730737832227,7.73528011,2430.9,2430.5,1.07438352]
[1730737832228,8.35257011,2430.9,2430.5,1.07438352]
[1730737832431,6.82953011,2430.6,2430.5,1.07438352]
[1730737832633,6.82953011,2430.6,2430.3,1.61151172]
[1730737832634,0.41158,2430.5,2430.4,1.07438352]
[1730737832822,41.21158,2430.5,2430.4,1.07438352]
[1730737833018,41.21158,2430.5,2430.4,1.48597352]
[1730737833223,41.21158,2430.5,2430.4,2.43089013]
[1730737833522,0.41159,2430.4,2430.3,1.48632299]
[1730737833730,0.41159,2430.4,2430.3,2.84289077]
[1730737833924,7.32457011,2430.4,2430.1,1.61151172]
[1730737834227,7.32457011,2430.4,2430.0,0.2]
[1730737834228,0.41164,2430.1,2430.0,0.2]
[1730737837125,3.2078,2430.2,2430.0,0.2]
[1730737837324,3.6622,2430.2,2430.0,0.2]
[1730737837926,3.2078,2430.2,2430.0,0.2]
[1730737838134,40.8,2430.5,2430.0,0.2]
[1730737838335,3.2078,2430.3,2430.0,0.2]
[1730737839125,3.2078,2430.3,2430.0,1.81151172]
[1730737839325,3.2078,2430.3,2430.0,0.2]
[1730737840036,3.2078,2430.3,2430.0,1.81151172]
[1730737840230,3.2078,2430.3,2430.0,0.2]
[1730737840535,40.8,2430.5,2430.0,1.81151172]
[1730737841226,6.41797011,2430.6,2430.0,1.81151172]
[1730737841835,44.0078,2430.5,2430.0,0.2]
[1730737845330,3.2078,2430.2,2430.0,0.2]
[1730737846044,3.2078,2430.2,2430.0,4.3152]
[1730737846728,40.8,2430.5,2430.0,4.3152]
[1730737846932,3.21017011,2430.2,2430.0,0.2]
[1730737847132,3.2078,2430.3,2430.0,0.2]
[1730737847730,44.01017011,2430.5,2430.0,0.2]
[1730737848335,3.2078,2430.1,2430.0,0.2]
[1730737848739,3.6582,2430.1,2430.0,0.2]
[1730737850641,3.2078,2430.1,2430.0,0.2]
[1730737852737,6.41797011,2430.4,2430.0,0.2]
[1730737853447,3.2078,2430.4,2430.0,0.2]
[1730737853945,40.8,2430.3,2430.0,0.2]
[1730737854446,3.21017011,2430.2,2430.0,0.2]
[1730737855443,40.8,2430.3,2430.0,0.2]
[1730737855940,40.8,2430.3,2430.1,0.4578]
[1730737856140,0.57096424,2430.1,2430.0,0.2]
[1730737857240,0.57096424,2430.1,2430.0,4.3152]
[1730737857539,0.57096424,2430.1,2430.0,0.2]
[1730737859850,0.57096424,2430.1,2429.4,1.61151172]
[1730737859851,11.10413435,2430.1,2429.4,1.61151172]
[1730737860038,11.10413435,2430.1,2428.8,3.2078]
[1730737860039,6.41797011,2429.5,2428.8,1.61151172]
[1730737860240,3.21017011,2429.6,2428.6,1.61151172]
[1730737860241,3.21017011,2428.9,2428.6,1.61151172]
[1730737860542,3.2078,2429.0,2428.7,0.54561007]
[1730737860739,3.21017011,2429.1,2428.8,0.54561007]
[1730737860944,40.8,2429.3,2428.9,0.54561007]
[1730737861245,40.8,2429.3,2429.0,1.46111007]
[1730737861445,40.8,2429.3,2429.1,0.54561007]
[1730737861640,40.8,2429.3,2429.2,0.54561007]
[1730737864247,3.2078,2429.7,2429.2,0.54561007]
[1730737864444,3.2078,2429.7,2429.3,0.54561007]
[1730737864651,40.8,2429.9,2429.4,0.54561007]
[1730737864954,40.8,2429.9,2429.1,5.26441172]
[1730737865151,40.8,2429.9,2429.2,1.91186553]
[1730737865351,40.8,2429.9,2429.3,0.54709319]
[1730737865548,40.8,2429.9,2429.4,0.54709319]
[1730737865847,40.8,2429.9,2429.5,0.97359319]
[1730737866051,40.8,2429.9,2429.6,0.54709319]
[1730737866352,44.01017011,2429.9,2429.3,1.61151172]
[1730737866655,44.01017011,2429.9,2429.4,1.91218274]
[1730737866852,44.01017011,2429.9,2429.5,0.54717945]
[1730737867159,44.01017011,2429.9,2429.6,0.54717945]
[1730737867355,44.01017011,2429.9,2429.7,0.54717945]
[1730737867554,44.01017011,2429.9,2429.3,1.61151172]
[1730737867750,44.01017011,2429.9,2429.4,1.91891603]
[1730737867945,44.01017011,2429.9,2429.5,0.55359107]
[1730737868156,44.01017011,2429.9,2429.6,0.55359107]
[1730737868451,45.03901903,2429.9,2429.7,0.55369155]
[1730737868653,45.03901903,2429.9,2429.3,1.61151172]
[1730737868851,45.03901903,2429.9,2429.4,1.91927451]
[1730737869054,45.03901903,2429.9,2429.5,0.55369078]
[1730737869254,45.03901903,2429.9,2429.6,0.55369078]
[1730737869457,45.03901903,2429.9,2429.7,0.55369078]
[1730737869759,45.03901903,2429.9,2429.2,0.4573]
[1730737870052,3.2078,2429.7,2429.3,0.55907257]
[1730737870251,3.2078,2429.7,2429.4,0.55907257]
[1730737870450,3.2078,2429.7,2429.2,0.4573]
[1730737870657,40.8,2429.6,2429.3,0.55916137]
[1730737870855,40.8,2429.6,2429.2,0.4573]
[1730737870856,40.8,2429.6,2429.4,0.55916137]
[1730737871050,40.8,2429.6,2429.2,0.4573]
[1730737871265,40.8,2429.6,2429.3,0.55922714]
[1730737871463,40.8,2429.6,2429.4,0.55922714]
[1730737871757,0.207,2430.2,2429.5,13.07230575]
[1730737871956,1.02825648,2431.3,2430.1,1.61222119]
[1730737871957,0.207,2430.4,2430.1,1.61222119]
[1730737872262,3.2078,2430.7,2430.2,0.55917752]
[1730737872467,3.2078,2430.7,2430.3,0.55917752]
[1730737872665,40.8,2430.6,2430.0,2.04192119]
[1730737872869,40.8,2430.6,2430.1,1.92522497]
[1730737873160,44.0078,2430.6,2430.2,0.55913637]
[1730737873356,40.8,2430.6,2430.3,0.55913637]
[1730737873559,40.8,2430.6,2430.0,2.04192119]
[1730737873861,40.8,2430.6,2430.1,0.55888026]
[1730737874059,40.8,2430.6,2430.2,0.55888026]
[1730737874261,40.8,2430.6,2430.3,0.55888026]
[1730737874453,40.8,2430.6,2430.4,0.55898352]
[1730737874654,40.8,2430.6,2430.1,0.4536]
[1730737874856,0.4256,2430.8,2430.3,1.61222119]
[1730737875064,0.4256,2430.8,2430.2,2.81986412]
[1730737875065,0.4256,2430.8,2430.4,0.55898624]
[1730737875360,40.8,2430.7,2430.5,0.55908236]
[1730737875560,40.8,2430.7,2430.6,0.55908236]
[1730737881768,40.8,2430.7,2430.2,1.61222119]
[1730737881970,40.8,2430.7,2430.3,2.82031315]
[1730737882163,40.8,2430.7,2430.4,0.55906391]
[1730737882355,40.8,2430.7,2430.5,0.55906391]
[1730737882560,40.8,2430.7,2430.2,1.61222119]
[1730737882762,40.8,2430.7,2430.3,4.43224218]
[1730737883060,40.8,2430.7,2430.4,0.55899934]
[1730737883261,40.8,2430.7,2430.5,0.55899934]
[1730737883467,40.8,2430.7,2430.6,0.55899934]
[1730737883660,40.8,2430.7,2430.2,1.61222119]
[1730737883861,40.8,2430.7,2430.3,1.45325746]
[1730737884166,40.8,2430.7,2430.2,1.61222119]
[1730737884167,40.8,2430.7,2430.4,0.55894636]
[1730737884367,40.8,2430.7,2430.5,0.55894636]
[1730737884561,40.8,2430.7,2430.2,4.82002119]
[1730737884756,40.8,2430.7,2430.3,1.92524799]
[1730737885057,40.8,2430.7,2430.5,0.41158]
[1730737885058,41.21155,2430.7,2430.5,0.41158]
[1730737885453,0.41156,2430.6,2430.5,0.41158]
[1730737885659,0.41156,2430.6,2430.5,0.55882119]
[1730737885861,0.41156,2430.6,2430.2,0.41163]
[1730737885862,0.41161,2430.3,2430.2,0.41163]
[1730737886064,0.41161,2430.3,2430.2,0.55888096]
[1730737886260,0.41161,2430.3,2430.2,0.97051096]
[1730737886665,0.41161,2430.3,2430.2,0.55888096]
[1730737887976,4.0925,2430.5,2430.2,0.55888096]
[1730737888163,4.0925,2430.5,2430.2,0.41162]
[1730737888164,0.8847,2430.5,2430.2,0.41162]
[1730737888469,0.41161,2430.3,2430.1,1.30014]
[1730737888770,0.41161,2430.3,2430.2,0.55886279]
[1730737888965,0.41161,2430.3,2430.2,0.97049279]
[1730737889171,0.41161,2430.3,2430.2,0.55886279]
[1730737889567,0.41161,2430.3,2430.2,0.97049279]
[1730737889969,0.41161,2430.4,2430.2,0.97049279]
[1730737890169,0.8847,2430.5,2430.3,0.41161]
[1730737890368,0.4116,2430.4,2430.3,0.41161]
[1730737890673,0.4116,2430.4,2430.2,0.41163]
[1730737891265,0.4116,2430.4,2430.3,0.55881886]
[1730737891469,0.4116,2430.4,2429.7,2.46692119]
[1730737891470,7.3222,2430.4,2429.7,2.46692119]
[1730737891669,0.41166,2430.1,2429.8,0.55888309]
[1730737891871,0.41166,2430.1,2430.0,0.41166]
[1730737892063,0.41166,2430.1,2430.0,0.97051946]
[1730737892269,1.02901,2430.4,2429.7,3.96301119]
[1730737892270,1.02904,2430.3,2429.8,0.41168]
[1730737892467,0.41168,2430.0,2429.9,0.55887762]
[1730737892668,0.41168,2430.0,2429.9,0.41168]
[1730737892871,0.41168,2430.0,2429.9,0.55888733]
[1730737893067,4.23681,2430.4,2429.9,0.55888733]
[1730737893264,1.02901,2430.4,2430.0,0.97053733]
[1730737893465,1.02901,2430.4,2430.0,0.41165]
[1730737893768,1.02901,2430.4,2429.7,3.96299119]
[1730737893769,1.02901,2430.4,2429.7,2.93372119]
[1730737894072,0.41167,2430.0,2429.9,0.41167]
[1730737894266,0.41167,2430.0,2429.9,0.97052847]
[1730737894469,0.41167,2430.0,2429.9,0.55885847]
[1730737895064,1.02903,2430.3,2429.9,0.55885847]
[1730737895265,2.05816,2430.2,2429.7,1.61222119]
[1730737895574,7.44709011,2430.1,2429.7,1.61222119]
[1730737895775,6.82967011,2429.8,2429.7,1.61222119]
[1730737896275,51.74567011,2429.8,2429.7,1.61222119]
[1730737897274,0.41176,2429.4,2429.3,0.41177]
[1730737897471,0.4118,2429.3,2429.2,0.41179]
[1730737897673,48.24725011,2429.8,2429.2,0.55886295]
[1730737897882,0.41173,2429.7,2429.6,0.41171]
[1730737898472,40.8,2429.8,2429.2,1.02949]
[1730737898775,0.41172,2429.7,2429.6,0.41171]
[1730737898971,40.8,2429.8,2429.2,4.67779]
[1730737898972,0.41174,2429.6,2429.5,0.41173]
[1730737899174,40.8,2429.8,2429.2,3.6483]
[1730737899374,0.41175,2429.5,2429.4,0.41176]
[1730737899578,0.41175,2429.5,2429.4,0.97126899]
[1730737899874,0.41175,2429.5,2429.4,0.55950899]
[1730737900270,0.41175,2429.5,2429.4,0.55946821]
[1730737900564,0.41175,2429.5,2429.3,0.41177]
[1730737900872,0.41178,2429.4,2429.2,0.85229]
[1730737901180,0.41178,2429.4,2429.3,0.97127583]
[1730737901975,45.03669126,2429.8,2429.5,0.41174]
[1730737902172,1.02889126,2429.8,2429.3,3.2078]
[1730737902367,0.41174,2429.6,2429.4,0.97112978]
[1730737902568,0.41174,2429.6,2429.5,0.4298]
[1730737902964,1.02889126,2429.8,2429.5,0.98916587]
[1730737903266,1.02889126,2429.8,2429.7,0.41171]
[1730737903466,0.32709126,2429.8,2429.7,4.52771]
[1730737903765,0.41163,2430.2,2429.9,0.41167]
[1730737903967,0.41166,2430.1,2430.0,0.4654]
[1730737904174,0.41164,2430.2,2430.0,1.02467319]
[1730737904476,4.1152,2430.2,2428.9,3.2078]
[1730737904675,0.41181,2429.2,2429.0,0.87722]
[1730737905271,1.02942,2429.4,2429.0,0.87723]
[1730737905474,3.21017011,2429.5,2429.1,0.41181]
[1730737905674,0.4118,2429.2,2429.0,0.4654]
[1730737905881,0.4118,2429.2,2429.0,0.87722]
[1730737906179,0.4118,2429.2,2429.1,0.41181]
[1730737906380,0.41176,2429.4,2429.2,0.41179]
[1730737906572,0.41177,2429.4,2429.2,0.41179]
[1730737906773,0.41176,2429.5,2429.0,4.70278]
[1730737907070,0.41177,2429.4,2429.2,0.41179]
[1730737907271,0.41175,2429.5,2429.0,4.70276]
[1730737907567,0.41178,2429.4,2429.2,0.41179]
[1730737907765,3.21017011,2429.7,2429.0,3.6732]
[1730737907974,0.41177,2429.4,2429.2,0.41178]
[1730737908179,3.2078,2429.6,2429.0,3.6732]
[1730737908480,0.41176,2429.5,2429.3,0.41178]
[1730737908680,3.61954,2429.6,2429.4,0.41176]
[1730737908871,3.2078,2429.6,2429.3,0.41177]
[1730737909087,0.41176,2429.5,2429.3,0.41177]
[1730737909276,0.41177,2429.4,2429.2,0.41179]
[1730737909573,3.21017011,2429.7,2429.0,3.6732]
[1730737909782,4.23947011,2429.7,2429.0,3.6732]
[1730737909977,3.2078,2429.6,2429.2,0.41179]
[1730737910274,0.41178,2429.3,2429.2,0.41179]
[1730737910473,0.41178,2429.3,2429.1,0.41181]
[1730737910675,0.41178,2429.4,2429.2,0.41179]
[1730737910972,0.4118,2429.2,2429.1,0.41181]
[1730737911176,3.21017011,2429.5,2429.0,3.2078]
[1730737911375,0.4247,2429.4,2429.0,3.61962]
[1730737911572,0.41179,2429.3,2429.1,0.41181]
[1730737911772,40.8,2429.2,2429.1,0.41181]
[1730737911972,40.8,2429.2,2429.0,3.2078]
[1730737912586,40.8,2429.2,2429.1,0.41181]
[1730737912880,41.2118,2429.2,2429.1,0.41181]
[1730737913179,40.8,2429.2,2429.1,0.41181]
[1730737913576,0.41179,2429.3,2429.1,0.41181]
[1730737913773,0.8553,2429.4,2429.0,3.2078]
[1730737913972,0.8553,2429.4,2429.1,0.41181]
[1730737914174,0.4118,2429.2,2429.1,0.41181]
[1730737914376,40.8,2429.3,2429.1,0.41181]
[1730737914579,41.21179,2429.3,2429.1,0.41181]
[1730737914774,0.4118,2429.2,2429.0,3.2078]